Cogmind - Beta 12 X2 @@@ ROGUE MODE // 2022.12.11 @ 06:36:16 Player: deadnoob Result: Destroyed by Y-54 Guardian with Gatling Laser Performance ------------- Evolutions (3) 1500 Regions Visited (6) 1200 Robots Destroyed (11) 55 Value Destroyed (437) 437 Prototype IDs (6) 120 Alien Tech Used (0) 0 Bonus (834) 834 TOTAL SCORE: 4146 Bonus ------- Pacifist 834 Cogmind --------- Core Integrity 0/700 Matter 179/300 Energy 99/100 System Corruption 7% Temperature Cool (12) Movement Core (50) Location -7/Factory Parts ------- > --- POWER (2) -------- (None) > --- PROPULSION (4) --- Heavy-Carbon Exoskeleton > --- UTILITY (4) ------ Armored Scrap Engine Hacking Suite > --- WEAPON (3) ------- (None) > --- INVENTORY (5) ---- Huge Storage Unit Matter Filter Peak State ------------ > --- POWER ------------ Multi-Ion Engine > --- PROPULSION ------- Heavy-Carbon Exoskeleton > --- UTILITY ---------- Armored Scrap Engine > --- WEAPON ----------- High-powered EM Pulse Construct/G Power Maul > --- INVENTORY -------- Huge Storage Unit Matter Filter Grenade Launcher Rocket Array [Rating: 33] Favorites ----------- Power Multi-Ion Engine Engine Multi-Ion Engine Propulsion Light Treads Treads Light Treads Leg Heavy-Carbon Exoskeleton Hover Unit Hover Unit Utility Armored Scrap Engine Device Armored Scrap Engine Storage Small Storage Unit Hackware Hacking Suite Weapon Power Maul Energy Gun Small Laser Ballistic Gun Light Assault Rifle Launcher Grenade Launcher Impact Weapon Power Maul Build | -11 -10 -9 -8 -7 -7 -7 ------- Run | Scr Mat Mat Mat Fac Was Fac Slots Evolved 6 | . . 2 2 2 . . Power 1 | . . . . 1 . . Propulsion 2 | . . 2 . . . . Utility 2 | . . . 2 . . . Weapon 1 | . . . . 1 . . Parts Attached 17 | . 2 4 1 4 2 4 Power 1 | . . 1 . . . . Engine 1 | . . 1 . . . . Core . | . . . . . . . Reactor . | . . . . . . . Propulsion 4 | . 2 2 . . . . Treads 2 | . 2 . . . . . Leg . | . . . . . . . Wheel . | . . . . . . . Hover 2 | . . 2 . . . . Flight . | . . . . . . . Utility 2 | . . . . 1 . 1 Device 1 | . . . . 1 . . Storage . | . . . . . . . Processor . | . . . . . . . Hackware 1 | . . . . . . 1 Protection . | . . . . . . . Artifact . | . . . . . . . Weapon 10 | . . 1 1 3 2 3 Energy Gun . | . . . . . . . Energy Cannon . | . . . . . . . Ballistic Gun . | . . . . . . . Ballistic Cannon . | . . . . . . . Launcher 7 | . . 1 1 2 2 1 Special Weapon . | . . . . . . . Impact Weapon 3 | . . . . 1 . 2 Slashing Weapon . | . . . . . . . Piercing Weapon . | . . . . . . . Special Melee Weapon . | . . . . . . . Unidentified Prototypes 3 | . . 1 1 1 . . Parts Lost 13 | . . 1 4 3 3 2 Power 1 | . . . . 1 . . Propulsion 6 | . . 1 3 1 1 . Utility . | . . . . . . . Weapon 6 | . . . 1 1 2 2 Highest Loss Streak 4 | . . 1 4 3 2 1 To Critical Strikes . | . . . . . . . Average Slot Usage (%) 24 | . 57 44 30 17 11 22 Engine 1 | . . . . 5 . . Treads 5 | . 28 22 15 . . . Hover 1 | . . 10 7 . . . Device 5 | . . . . 7 7 7 Hackware 1 | . . . . . . 6 Energy Gun 1 | . 14 1 . . . . Ballistic Gun 1 | . 14 1 . . . . Launcher 2 | . . 9 7 . 3 . Impact Weapon 2 | . . . . 2 . 5 Naked Turns 10 | . . . 10 . . . Heaviest Build 15 | 10 2 3 3 15 8 4 Greatest Support 20 | 20 3 12 3 9 14 3 Greatest Overweight (x) 4 | . . . . 4 2 1 Average Overweight (x) . | . . . . 1 . . Largest Inventory Capacity 8 | . 8 5 5 5 5 5 Average Capacity 5 | . 5 5 5 5 5 5 Most Carried 6 | . 6 5 5 5 5 4 Average Carried 3 | . 2 4 5 3 4 3 Final Capacity 8 | 8 5 5 5 5 5 5 Final Carried 6 | 6 3 5 5 5 4 2 Class Distribution -------------------- 100% | Mutant Dominant Class ---------------- Mutant | -10/Materials Mutant | -9/Materials Mutant | -8/Materials Mutant | -7/Factory Mutant | -7/Waste Mutant | -7/Factory Resources | -11 -10 -9 -8 -7 -7 -7 ----------- Run | Scr Mat Mat Mat Fac Was Fac Matter Collected 388 | 200 . . . 74 95 19 Remotely . | . . . . . . . Salvage Created 726 | . . . . 274 420 32 Parts 11 | . . . . 7 4 . Haulers Intercepted . | . . . . . . . Recyclers Shooed 1 | . . . . 1 . . Parts Field Recycled . | . . . . . . . Retrieved Matter . | . . . . . . . Parts Self-Destructed . | . . . . . . . Prevented . | . . . . . . . Kills | -11 -10 -9 -8 -7 -7 -7 ------- Run | Scr Mat Mat Mat Fac Was Fac Combat Hostiles Destroyed 9 | . . . . 7 2 . Melee 2 | . . . . 2 . . AOE 3 | . . . . 1 2 . Classes Destroyed 4 | . . . . 1 1 2 Builder 1 | . . . . . . 1 Mechanic 1 | . . . . . . 1 Grunt 7 | . . . . 7 . . Compactor 2 | . . . . . 2 . Best Kill Streak 4 | . . . . 4 1 1 Combat Bots Only 4 | . . . . 4 1 . Max Kills in Single Turn 1 | . . . . 1 1 1 Gunslinging . | . . . . . . . Exploded 1 | . . . . 1 1 . Melee 1 | . . . . 1 . . Uniques/NPCs Destroyed . | . . . . . . . Combat | -11 -10 -9 -8 -7 -7 -7 -------- Run | Scr Mat Mat Mat Fac Was Fac Damage Taken 2500 | . 121 242 267 1124 294 452 Core 868 | . 24 11 128 437 84 184 Absorbed by Shields . | . . . . . . . Core Remaining (%) 90 | 100 90 97 76 . . . Volleys Fired 11 | . . 1 . 1 8 1 Largest 1 | . . 1 . 1 1 1 Hottest 45 | . . 30 . 45 45 39 Shots Fired 11 | . . 1 . 1 8 1 Gun . | . . . . . . . Cannon . | . . . . . . . Launcher 11 | . . 1 . 1 8 1 Special . | . . . . . . . Kinetic . | . . . . . . . Thermal . | . . . . . . . Explosive 11 | . . 1 . 1 8 1 Electromagnetic . | . . . . . . . Robot Hit Streak 7 | . . . . 1 7 . Robot Miss Streak 2 | . . 1 . 1 2 . Penetration Max . | . . . . . . . Secondary Targets . | . . . . . . . Shots Hit Robots 33 | . . . . 23 8 2 Core Hits 22 | . . . . 13 9 . Critical Kills . | . . . . . . . Critical Parts Destroyed 3 | . . . . 2 . 1 Critical Strikes 3 | . . . . 2 . 1 Smash 3 | . . . . 2 . 1 Melee Attacks 40 | . . . . 33 . 7 Impact 40 | . . . . 33 . 7 Slashing . | . . . . . . . Piercing . | . . . . . . . Sneak Attacks 2 | . . . . . . 2 Combat Hostiles . | . . . . . . . Follow-up Attacks . | . . . . . . . Damage Inflicted 3607 | . . 22 19 1458 1950 158 Guns . | . . . . . . . Cannons . | . . . . . . . Explosions 2466 | . . 22 . 494 1950 . Melee 1122 | . . . . 964 . 158 Ramming 19 | . . . 19 . . . Kinetic . | . . . . . . . Thermal . | . . . . . . . Explosive 2466 | . . 22 . 494 1950 . Electromagnetic . | . . . . . . . Impact 1122 | . . . . 964 . 158 Slashing . | . . . . . . . Piercing . | . . . . . . . Highest Corruption 7 | . . . . 7 7 7 Average Corruption 6 | . . . . 3 7 7 Corruption Purged . | . . . . . . . Corruption Blocked . | . . . . . . . Effects 15 | . . . . 1 5 9 Message Errors 5 | . . . . . 2 3 Matter Fused 2 | . . . . . 1 1 Heat Flow Errors 1 | . . . . . . 1 Energy Discharges 1 | . . . . . . 1 Data Loss (minor) 3 | . . . . 1 1 1 Data Loss (major) 3 | . . . . . 1 2 Overload Shots . | . . . . . . . Overflow Damage 447 | . . . . 291 18 138 Projectiles 3 | . . . . 3 . . Explosions 29 | . . . . 6 18 5 Melee 415 | . . . . 282 . 133 Knockbacks 11 | . . . 1 9 . 1 Impact 10 | . . . 1 8 . 1 Kinetic . | . . . . . . . Secondary 1 | . . . . 1 . . Self-Inflicted Damage 275 | . . 30 9 . 195 41 Shots 12 | . . 1 . . 10 1 Rammed 3 | . . . 3 . . . Targets Rammed 3 | . . . 3 . . . Kicked . | . . . . . . . Crushed . | . . . . . . . Highest Temperature 222 | . . . . 15 . 222 Average Temperature 106 | . . . . 15 . 120 Received Heat Transfer 849 | . 69 93 189 366 . 132 Siege Activations . | . . . . . . . Robots Corrupted . | . . . . . . . Combat Hostiles . | . . . . . . . Parts Fried 4 | . . . . 2 . 2 Impact Corruptions 18 | . . . . 13 . 5 Robots Melted . | . . . . . . . Combat Hostiles . | . . . . . . . Parts Melted . | . . . . . . . Heat Transferred . | . . . . . . . Parts Sabotaged . | . . . . . . . Parts Stolen . | . . . . . . . Parts Stripped . | . . . . . . . Power Chain Reactions . | . . . . . . . Missiles Intercepted . | . . . . . . . Alert | -11 -10 -9 -8 -7 -7 -7 ------- Run | Scr Mat Mat Mat Fac Was Fac Peak Influence 277 | . 111 171 124 277 103 198 Initial 72 | . . 46 72 37 27 56 Average 93 | . 70 74 83 105 77 105 Maximum Alert Level 1 | . . . . 1 . . Low Security (%) 94 | . 100 100 100 84 100 100 Level 1 5 | . . . . 15 . . Level 2 . | . . . . . . . Level 3 . | . . . . . . . Level 4 . | . . . . . . . Level 5 . | . . . . . . . High Security . | . . . . . . . Max Security . | . . . . . . . Squads Dispatched 11 | . 2 3 2 4 . . Investigation 8 | . 2 2 2 2 . . Extermination 1 | . . . . 1 . . Reinforcement 2 | . . 1 . 1 . . Assault . | . . . . . . . Garrison . | . . . . . . . Intercept . | . . . . . . . Searches Triggered . | . . . . . . . Construction Impeded . | . . . . . . . Haulers Reinforced . | . . . . . . . Active Scanning Responses . | . . . . . . . Cargo Convoy Interrupts . | . . . . . . . Stealth | -11 -10 -9 -8 -7 -7 -7 --------- Run | Scr Mat Mat Mat Fac Was Fac Distress Signals 3 | . . . 2 . . 1 Communications Jammed . | . . . . . . . Distress Signals . | . . . . . . . Times Spotted 48 | . 4 7 11 13 5 8 Peak Tracking Total 11 | . 3 6 11 6 3 5 Tactical Retreats 6 | . 1 2 1 1 . 1 Traps | -11 -10 -9 -8 -7 -7 -7 ------- Run | Scr Mat Mat Mat Fac Was Fac Traps Triggered 3 | . . 1 1 1 . . Indirectly . | . . . . . . . Trap Hack Attempts . | . . . . . . . Triggered . | . . . . . . . Disarmed . | . . . . . . . Reprogrammed . | . . . . . . . Reused . | . . . . . . . Traps Extracted . | . . . . . . . Installed . | . . . . . . . Triggered . | . . . . . . . Machines | -11 -10 -9 -8 -7 -7 -7 ---------- Run | Scr Mat Mat Mat Fac Was Fac Machines Disabled 1 | . . . . . . 1 Max in Single Turn 1 | . . . . . . 1 Garrison Access 1 | . . . . . . 1 Machines Sabotaged . | . . . . . . . Overloaded Fab Kills . | . . . . . . . Hacking | -11 -10 -9 -8 -7 -7 -7 --------- Run | Scr Mat Mat Mat Fac Was Fac Machines Accessed 12 | . 4 3 2 2 . 1 Terminals 7 | . 2 3 2 . . . Fabricators . | . . . . . . . Repair Stations . | . . . . . . . Recycling Units 4 | . 2 . . 2 . . Scanalyzers . | . . . . . . . Garrison Access 1 | . . . . . . 1 Total Hacks 27 | . 6 11 5 3 . 2 Successful 9 | . 3 2 1 2 . 1 Failed 18 | . 3 9 4 1 . 1 Catastrophic 2 | . . 2 . . . . Database Lockouts . | . . . . . . . Manual 23 | . 6 9 5 3 . . Terminals 20 | . 4 11 5 . . . Fabricators . | . . . . . . . Repair Stations . | . . . . . . . Recycling Units 5 | . 2 . . 3 . . Scanalyzers . | . . . . . . . Garrison Access 2 | . . . . . . 2 Terminal Hacks 3 | . 1 1 1 . . . Robot Analysis 3 | . 1 1 1 . . . Fabricator Hacks . | . . . . . . . Repair Station Hacks . | . . . . . . . Recycling Unit Hacks . | . . . . . . . Scanalyzer . | . . . . . . . Garrison Access Hacks 1 | . . . . . . 1 Seal Access 1 | . . . . . . 1 Unauthorized Hacks 5 | . 2 1 . 2 . . Terminals 1 | . . 1 . . . . Track 1 | . . 1 . . . . Fabricators . | . . . . . . . Repair Stations . | . . . . . . . Recycling Units 4 | . 2 . . 2 . . Tunnel 4 | . 2 . . 2 . . Scanalyzers . | . . . . . . . Garrison Access . | . . . . . . . Data Cores Recovered . | . . . . . . . Used . | . . . . . . . Hacking Detections 9 | . 2 3 2 1 . 1 Full Trace Events 4 | . . 3 1 . . . Feedback Events . | . . . . . . . Feedback Blocked . | . . . . . . . Robot Schematics Acquired . | . . . . . . . Robots Built . | . . . . . . . Authchips . | . . . . . . . Time . | . . . . . . . Total Robot Build Rating . | . . . . . . . Part Schematics Acquired . | . . . . . . . Parts Built . | . . . . . . . Authchips . | . . . . . . . Time . | . . . . . . . Total Part Build Rating . | . . . . . . . Parts Repaired . | . . . . . . . Time . | . . . . . . . Parts Recycled . | . . . . . . . Recycled Matter . | . . . . . . . Retrieved Matter . | . . . . . . . Retrieved Components . | . . . . . . . Parts Scanalyzed . | . . . . . . . Part Schematics Acquired . | . . . . . . . Parts Damaged . | . . . . . . . Bothacking | -11 -10 -9 -8 -7 -7 -7 ------------ Run | Scr Mat Mat Mat Fac Was Fac Used RIF Installer . | . . . . . . . Robots Hacked . | . . . . . . . Non-combat . | . . . . . . . Combat . | . . . . . . . Robot Hacks Applied . | . . . . . . . Relay Couplers Released . | . . . . . . . Fabnet Peak Effective % . | . . . . . . . Robots Rewired . | . . . . . . . Allies Hacked . | . . . . . . . Hacks Repelled . | . . . . . . . Allies | -11 -10 -9 -8 -7 -7 -7 -------- Run | Scr Mat Mat Mat Fac Was Fac Total Allies . | . . . . . . . Largest Group . | . . . . . . . Highest-Rated Group . | . . . . . . . Highest-Rated Ally . | . . . . . . . Total Orders . | . . . . . . . Ally Attacks . | . . . . . . . Total Damage . | . . . . . . . Kills . | . . . . . . . Allies Corrupted . | . . . . . . . Allies Melted . | . . . . . . . Intel | -11 -10 -9 -8 -7 -7 -7 ------- Run | Scr Mat Mat Mat Fac Was Fac Robot Analysis Total 3 | . 1 1 1 . . . Derelict Logs Recovered . | . . . . . . . Drone Launches . | . . . . . . . Drone Recoveries . | . . . . . . . Exploration | -11 -10 -9 -8 -7 -7 -7 ------------- Run | Scr Mat Mat Mat Fac Was Fac Turns Passed 1301 | . 105 141 58 440 213 344 Spaces Moved 1370 | 1 190 244 106 254 223 352 Core 1349 | . 190 237 106 249 215 352 Treads 8 | . . . . . 8 . Legs 1 | 1 . . . . . . Wheels . | . . . . . . . Hover 12 | . . 7 . 5 . . Flight . | . . . . . . . Fastest Speed 50 | 120 50 50 50 50 50 50 Average Speed 74 | 120 50 51 50 119 75 77 Slowest Speed 250 | 120 50 100 50 250 150 100 Overloaded Moves . | . . . . . . . Propulsion Burnouts . | . . . . . . . Robots Hopped . | . . . . . . . Cave-ins Triggered . | . . . . . . . Exploration Rate (%) 26 | 2 31 33 17 4 86 9 Regions Visited 6 Branch Regions . Pre-discovered Areas 4 | . 2 . . 2 . . Known Exits Taken . | . . . . . . . Unknown Exits Taken 4 | 1 1 1 1 . . . Scrap Searched . | . . . . . . . Spaces Dug 5 | . . . . . . 5 Terrain Destroyed 166 | . . 9 . 18 122 17 Melee 5 | . . . . . . 5 Projectile . | . . . . . . . AOE 161 | . . 9 . 18 122 12 Terrain Rammed . | . . . . . . . Walls Destroyed . | . . . . . . . Machines Disabled . | . . . . . . . Actions | -11 -10 -9 -8 -7 -7 -7 --------- Run | Scr Mat Mat Mat Fac Was Fac Total 1554 | . 201 259 110 324 252 408 Wait 87 | . . 1 . 24 19 43 Move 1366 | . 189 243 106 254 222 352 Hop . | . . . . . . . Pick Up 11 | . 3 5 . 2 1 . Fast Attach 7 | . . 3 1 2 . 1 Attach 8 | . . 1 . 2 2 3 Detach 4 | . . . . 3 . 1 Swap 2 | . 2 . . . . . Drop 16 | . 7 5 1 3 . . Fire 11 | . . 1 . 1 8 1 Melee 40 | . . . . 33 . 7 Ram 2 | . . . 2 . . . Kick . | . . . . . . . Crush . | . . . . . . . Escape Stasis . | . . . . . . . Rewire . | . . . . . . . Trap . | . . . . . . . Miscellaneous . | . . . . . . . Route ------- -11/Scrapyard -10/Materials -9/Materials -8/Materials -7/Factory -7/Waste -7/Factory History --------- Turn | Location | Event 1 | -11/Scrapyard | Discovered new exit (range 0) 1 | -11/Scrapyard | Entered Materials 104 | -10/Materials | Discovered new exit (range 5) 106 | -10/Materials | Entered another Materials area 106 | -9/Materials | Evolved 2 slots: Propulsion x2 238 | -9/Materials | Discovered new exit (range 16) 247 | -9/Materials | Entered another Materials area 247 | -8/Materials | Evolved 2 slots: Utility x2 301 | -8/Materials | Discovered new exit (range 6) 302 | -8/Materials | Build established: Mutant 305 | -8/Materials | Entered Factory 305 | -7/Factory | Evolved 2 slots: Power x1, Weapon x1 305 | -7/Factory | Found Scrap Engine 326 | -7/Factory | Lost 4 parts (3n1w) 350 | -7/Factory | Found Prototype Launcher 350 | -7/Factory | Identified Rocket Array 740 | -7/Factory | Core integrity fell below 50% 745 | -7/Factory | Manually triggered Chute Trap 745 | -7/Factory | Sucked down chute 745 | -7/Factory | Entered Waste 749 | -7/Waste | Spotted C-40 Crusher 760 | -7/Waste | Destroyed C-40 Crusher 771 | -7/Waste | Lost 3 parts (1p1n1w) 819 | -7/Waste | Spotted C-40 Crusher 824 | -7/Waste | Destroyed C-40 Crusher 831 | -7/Waste | Spotted C-40 Crusher 836 | -7/Waste | Spotted C-40 Crusher 842 | -7/Waste | Crushed by Compactor (1 part destroyed) 890 | -7/Waste | Spotted C-40 Crusher 906 | -7/Waste | Spotted C-40 Crusher 919 | -7/Waste | Discovered new exit (range 16) 958 | -7/Waste | Entered Factory 1057 | -7/Factory | Core integrity fell below 20% 1302 | -7/Factory | Destroyed by Y-54 Guardian with Gatling Laser Last Messages --------------- 01203_ System corrupted: Matter fused (-7). 01232_ Sneak attack on U-05 Engineer. 01232_ U-05 Engineer suffers critical hit (Smash). 01232_ Destroyed Wheel. 01232_ Destroyed Welding Torch. 01232_ Destroyed Terrain Scanner. 01232_ U-05 Engineer system corrupted by crushing effect. 01232_ U-05 Engineer knocked back. 01233_ U-05 Engineer system terminally corrupted. 01233_ Wheel fried. 01243_ Power Maul destroyed. 01256_ System corrupted: Heat flow error (+256). 01269_ Scrap Engine modifies Heavy-Carbon Exoskeleton: Max Integrity -107. 01283_ System corrupted: Component data lost. 01284_ Arm. Scrap Engine consumes Hvy. Ion Cannon. 01287_ Assembly Bed disabled. 01287_ Hvy. Missile Launcher destroyed. 01287_ Destroyed Hvy. Missile Launcher. 01291_ The unstable cave ceiling collapses. Map ----- +----------------------------------------------------+ | ??????????# """ """ # # " " " " " #??????????# | | ??????????# """ """ # + " " " " " #??######??# | | ??????????# # # " " " " " #??? ?# | | ??????????# """ """ # # " " " " " #?? """ ?# | | ??????????# """ """ # + " " " " " ??? """ # | | ??????????# """ """ # # " " " " " ??# """ # | | ??????????# # # " " " " " #?# + | | ??????????# + # #?# """ # | | ??????????# # # ! #?? """ # | | ??????######## ###### ##+############# """ ?# | | ??????# ## / # | | ??????# "" ## #####+################??# | | ??????# """ ## #?# #????????????# | | ??????# """""" ## ### """"" #????????????# | | ??????# """""" u # """"" #????????????# | | ??????# # # """ #????????????# | | ??????#######+########w + #??????????### | | ??????????# # """"" #??????????# | | ??????????# ###### # """"" #??????????# | | ??????????# #????## ## """ #??????????# | | ??????????# #?????# ## =#??????????# | | ??????????# #?????# ###########??????????# | | ??????????# #?????# #????????????????????# | | ??????????# #?????# #????????????????????# | | ??????????# #?????# #????????????????????# | | ??????????# #?????# @#????????????????????# | | ??????????# #?????# #???????????????????#### | | ??????????# #?????# #???????????????????# | | ??????????# #?????# #???????????????????# "" | | ??????????# #?????# #???????????????????# | | ??????????# #?????# #???????????????????# | | ??????????# #?????/w +???????????????????# | | ??????????# #?????# #???????????????????# | | ??????????# #?????# w#???????????????????# | | ??????????# #?????# #???????????????????# | | ??????????# #?????# #???????????????????# | | ??????????# #?????# #???????????????????# "" | | ??????????# #?????# ????????????????????# | | ??????????? ?????# Y ????????????????????# | | ??????????? ????? ????????????????????#### | | ??????????? ??????? ???????????????????????? | | ??????????? ???????????????????????????????????? | | ?????????????????????????????????????????????????? | | ?????????????????????????????????????????????????? | | ?????????????????????????????????????????????????? | | ?????????????????????????????????????????????????? | | ?????????????????????????????????????????????????? | | ?????????????????????????????????????????????????? | | ?????????????????????????????????????????????????? | | ?????????????????????????????????????????????????? | +----------------------------------------------------+ Best States ------------- Heat Dissipation 34 Energy Generation 14 Energy Capacity 220 Matter Stores 300 Matter Capacity 300 Sight Range 16 Terrain Scan Density 10 Evasion (%) 50 Recoil Reduction 1 Offensive Hacking 10 Item Schematics ----------------- None Robot Schematics ------------------ None Fabricated ------------ Nothing Alien Tech Used ----------------- None Achievements -------------- None Challenges ------------ None Game ------ Seed SwordMobileScythe Manual? 0 Play Time 00:15:33 Cumulative 154.5 hours Start 2022.12.11 @ 06:23:21 End 2022.12.11 @ 06:36:16 Sessions 1 Manual Loads 0 Difficulty Rogue Special Mode None Game No. 197 Rogue 197 Adventurer 0 Explorer 0 Win Type - Total 2 Types 1/0/0/1/0/0/0/0/0 Lore% 76 Gallery% 77 Achievement% 62 Wizard Run 0 Options --------- ASCII 0 Keyboard 0 Movement Numpad Keybinds 0 Fullscreen 2 Font 18/SmallcapsGlow Map View 76x50 Tactical HUD 1 Map Filters NONE Filters NONE Steam 1 RUN: 42cd17d0-564f-4d9a-9292-179558c67eb2